[Event "Israeli Championship 2022"]
[Site "Yosiah Arad"]
[Date "2022.12.10"]
[Round "6.15"]
[White "Barak, Gil"]
[Black "Shimshovich, Asaf"]
[Result "0-1"]
[ECO "B80"]
[WhiteElo "2147"]
[BlackElo "1941"]
[Annotator "TA"]
[PlyCount "80"]
[EventDate "2022.12.05"]
[EventType "swiss"]
[EventCountry "ISR"]
[SourceTitle "playchess.com"]
[Source "ChessBase"]
[SourceQuality "1"]
[TimeControl "40/5400+30:1800+30"]

{[%evp 17,80,-29,26,0,0,0,0,0,7,0,-18,-3,-8,-4,0,-19,-10,0,0,0,0,-52,-33,-21,0,-107,-56,-243,-239,-273,-270,-281,-269,-281,-264,-300,-302,-514,-446,-443,-438,-585,-587,-563,-583,-560,-520,-800,-793,-890,-893,-912,-897,-892,-873,-1516,-1482,-1156,-857,-1663,-1929,-1639,-1497,-1144,-1082]} 1. e4 {[%emt 0:00:05]} c5 {[%emt 0:00:04]} 2. Nf3 {[%emt 0:00:08]} e6 {[%emt 0:00:07]} 3. d4 {[%emt 0:00:03]} cxd4 {[%emt 0:00:05]} 4. Nxd4 {[%emt 0:00:04]} Nf6 {[%emt 0:00:06]} 5. Nc3 {[%emt 0:00:07]} d6 {[%emt 0:00:20]} 6. Be3 {[%emt 0:00:22]} a6 {[%emt 0:00:10]} 7. f3 {[%emt 0:00:09]} b5 {[%emt 0:00:09]} 8. Qd2 {[%emt 0:00:07]} Nbd7 {[%emt 0:00:09]} 9. g4 {[%emt 0:02:19]} Nb6 {[%emt 0:01:22]} (9... h6 $142) 10. a3 {[%emt 0:02:35] B80: Sicilian Scheveningen: 6 g3 and 6 Be3, including English Attack.} Bb7 {[%emt 0:00:51]} 11. O-O-O {[%emt 0:03:49]} Rc8 {[%emt 0:00:52]} 12. Kb1 {[%emt 0:05:10] The position is equal.} Nfd7 {[%emt 0:04:18]} 13. Nb3 {[%emt 0:09:49]} Ne5 {[%emt 0:12:01]} 14. Na5 {[%emt 0:09:58]} Ba8 {[%emt 0:06:57]} (14... Nxf3 $2 15. Qf2 Na4 16. Nxb7 $18) 15. Be2 $1 {[%emt 0:05:36]} Be7 {[%emt 0:01:57] [#]} 16. f4 $146 {[%emt 0:06:52]} ({Predecessor:} 16. h4 O-O 17. h5 Nbd7 18. Nb3 Nb6 19. Na5 d5 20. h6 g6 21. f4 Ned7 22. exd5 Nxd5 23. Nxd5 Bxd5 {½-½ (37) Dimov,I (2463)-Scherer,R (2607) ICCF email 2010}) 16... Nec4 {[%emt 0:05:23]} 17. Nxc4 {[%emt 0:00:13]} Nxc4 {[%emt 0:00:12]} 18. Bxc4 {[%emt 0:00:17]} Rxc4 {[%emt 0:00:44]} 19. Bd4 {[%emt 0:01:43]} ({White should play} 19. Rhf1 $11) 19... O-O $15 {[%emt 0:01:38]} 20. Rhe1 {[%emt 0:02:32]} Qb8 {[%emt 0:03:00]} 21. g5 {[%emt 0:08:56]} (21. b3 $11 Rc6 22. Re2) 21... Rfc8 {[%emt 0:14:57]} (21... b4 $17 22. axb4 Rxb4) 22. f5 $2 {[%emt 0:06:42] Now White is beyond hope.} (22. b3 $15 b4 23. Nd5 (23. bxc4 $2 {leads to mate.} bxc3+) (23. axb4 Rxb4 24. f5 e5 $17) 23... Bxd5 24. exd5 Rxc2 25. Qxb4 Rxh2 26. Qxb8 Rxb8 27. Rd3) 22... e5 {[%emt 0:08:10]} 23. Bf2 {[%emt 0:02:35][%cal Of5f6] [#]} b4 $1 {[%emt 0:03:09] Inhibits f6.} 24. axb4 {[%emt 0:00:45]} Rxb4 {[%emt 0:00:20]} 25. b3 {[%emt 0:03:36][%cal Of5f6] [#]} Bxg5 {[%emt 0:01:29][%mdl 512]} 26. Be3 {[%emt 0:04:22]} Rd4 {[%emt 0:11:25]} ({Weaker is} 26... Bh4 27. Rg1 $17) 27. Qg2 {[%emt 0:05:13]} (27. Bxg5 Rxd2 28. Bxd2) 27... Bxe3 {[%emt 0:02:31] Black is clearly winning.} 28. Rxe3 {[%emt 0:00:05] [#] And now Rg1 would win.} Rxc3 $1 {[%emt 0:00:36][%cal Bc8c3,Bc3e3,Be3e4,Be4f4,Bf4f6,Bf6f2,Bf2f3][%mdl 544]} 29. Rg1 {[%emt 0:05:19][%csl Gg1][%cal Rg2g7]} (29. Rxc3 Rxd1+) 29... Rd1+ $1 {[%emt 0:00:31]} (29... Rxe3 $2 30. Qxg7#) 30. Rxd1 {[%emt 0:00:05]} Rxe3 {[%emt 0:00:05]} 31. f6 {[%emt 0:02:22][%csl Gf6][%cal Rg2g7]} g6 {[%emt 0:05:12]} (31... Bxe4 $2 32. Qxg7#) 32. Kb2 {[%emt 0:14:32]} (32. Qd2 $142 Rxe4 33. Qh6) 32... Rxe4 $19 {[%emt 0:04:48]} 33. Qg1 {[%emt 0:00:00]} Rf4 {[%emt 0:01:12]} 34. Ra1 {[%emt 0:00:00]} Qc8 {[%emt 0:03:59]} 35. Qb6 {[%emt 0:00:00]} Rxf6 {[%emt 0:00:44]} 36. Rxa6 {[%emt 0:00:00]} Be4 {[%emt 0:01:21]} 37. c4 {[%emt 0:00:00]} Rf2+ {[%emt 0:00:56]} 38. Kc3 {[%emt 0:00:00]} Qc5 {[%emt 0:01:58]} 39. Qxc5 {[%emt 0:01:30]} dxc5 {[%emt 0:00:05][%csl Ge4][%cal Rf2c2]} 40. b4 {[%emt 0:01:03]} Rf3+ {[%emt 0:06:37] Weighted Error Value: White=0.66/Black=0.13 (very precise)} 0-1

[Event "Israeli Championship 2022"]
[Site "Yosiah Arad"]
[Date "2022.12.11"]
[Round "7.1"]
[White "Bronstein, Or"]
[Black "Gorshtein, Ido"]
[Result "0-1"]
[ECO "A85"]
[WhiteElo "2442"]
[BlackElo "2469"]
[Annotator "TA"]
[PlyCount "108"]
[EventDate "2022.12.05"]
[EventType "swiss"]
[EventCountry "ISR"]
[SourceTitle "playchess.com"]
[Source "ChessBase"]
[SourceQuality "1"]
[TimeControl "40/5400+30:1800+30"]

{[%evp 9,108,10,21,9,19,12,19,17,20,21,14,15,24,16,43,29,38,44,35,39,65,55,65,76,69,-18,56,71,132,122,122,64,167,161,187,0,0,0,61,74,89,0,-2,-211,-170,-189,-168,-274,-255,-168,-61,-313,-195,-164,-66,-142,0,-26,-27,-103,0,-60,-62,-65,-17,-40,-34,-43,-7,-5,-54,-73,-65,-97,-83,-86,-91,-77,-82,-95,-86,-66,-39,-42,0,0,0,-64,-74,-220,-247,-228,-208,-252,-243,-336,-287,-283,-230,-178,-158]} 1. d4 {[%emt 0:00:03]} f5 {[%emt 0:00:04]} 2. c4 {[%emt 0:01:31]} Nf6 {[%emt 0:00:06]} 3. Nc3 {[%emt 0:00:06]} e6 {[%emt 0:00:05]} 4. a3 {[%emt 0:03:12]} g6 {[%emt 0:05:22]} 5. Nf3 {[%emt 0:10:20]} Bg7 {[%emt 0:00:23] [#]} 6. b4 $146 {[%emt 0:00:08] A85: Dutch Defence: 2 c4 Nf6 3 Nc3.} ({Predecessor:} 6. Bg5 h6 7. Bxf6 Qxf6 8. e4 d6 9. Bd3 O-O 10. O-O Nc6 11. d5 Ne5 12. Nxe5 dxe5 {½-½ (24) Enkhtuul,A (2267)-Hoang,T (2376) Chennai 2022}) 6... O-O {[%emt 0:02:49]} 7. Bb2 {[%emt 0:00:01]} b6 {[%emt 0:07:09]} 8. e3 {[%emt 0:05:20] The position is equal.} Bb7 {[%emt 0:04:26]} 9. Be2 {[%emt 0:00:08]} Qe7 {[%emt 0:00:24]} 10. O-O {[%emt 0:00:16]} d6 {[%emt 0:07:32]} 11. Qb3 {[%emt 0:07:18]} c5 {[%emt 0:09:15]} 12. Rfd1 {[%emt 0:06:15]} Nc6 {[%emt 0:05:23]} 13. Rab1 {[%emt 0:06:52]} cxd4 {[%emt 0:07:17]} 14. exd4 {[%emt 0:00:50][%cal Be3d4,Bd4d5][%mdl 32]} Nd8 {[%emt 0:00:34]} 15. a4 {[%emt 0:14:14]} Nf7 {[%emt 0:01:34]} 16. d5 {[%emt 0:06:00]} e5 {[%emt 0:00:29]} 17. Bc1 {[%emt 0:03:38]} (17. c5 $1 $14) 17... Kh8 {[%emt 0:05:09]} ({Better is} 17... Nd7 $1 $11) 18. c5 $14 {[%emt 0:06:06][%cal Bc4c5,Bc5c6][%mdl 32]} f4 {[%emt 0:02:24]} (18... e4 $142) 19. Re1 {[%emt 0:03:44]} e4 {[%emt 0:14:40]} 20. Bc4 {[%emt 0:06:45]} (20. c6 $6 exf3 21. cxb7 Rae8 22. gxf3 Qxb7 $11) (20. Bd3 $1 $16) 20... e3 {[%emt 0:03:41]} (20... dxc5 $14 21. bxc5 Qxc5 22. Nxe4 (22. Ba3 Qc7 $14) 22... Nxe4 23. Rxe4 Nd6) 21. c6 {[%emt 0:07:47][%cal Rf2e3]} Bc8 {[%emt 0:04:34]} 22. Ne2 $2 {[%emt 0:04:22]} ({Only move:} 22. fxe3 $18 Ne5 23. Nxe5 (23. exf4 $2 Nxf3+ 24. gxf3 Qxe1+ $19) 23... Qxe5 24. Bb2 (24. exf4 $2 Qxe1+ 25. Bf1 Ng4 $19)) 22... exf2+ $11 {[%emt 0:02:04]} 23. Kxf2 {[%emt 0:00:02]} Ng4+ {[%emt 0:00:12]} ({Black should try} 23... Ne5 $11 24. Ned4 (24. Nxf4 Nfg4+ 25. Kg3 Nh6 $15) (24. Bxf4 Ne4+ 25. Kg1 Nxf3+ 26. Qxf3 Nd2 $11) 24... Nfg4+ 25. Kf1 g5) 24. Kg1 $14 {[%emt 0:00:14]} Bf5 {[%emt 0:07:03]} 25. h3 {[%emt 0:06:15]} Nge5 $11 {[%emt 0:00:48]} (25... Bxb1 $2 26. hxg4 Ne5 27. Ned4 $18 (27. Bxf4 $2 {too greedy.} Rxf4 28. Nxe5 Qxe5 $19) (27. Nxe5 Qxe5 28. Rf1 Qe4 $15)) 26. Nxe5 {[%emt 0:01:19]} Nxe5 $19 {[%emt 0:00:49]} 27. Bxf4 {[%emt 0:00:42] Hoping for Rbc1.} Bxb1 {[%emt 0:01:02]} 28. Bxe5 {[%emt 0:00:13]} (28. Rxb1 {was worth a try.} Nxc4 29. Qxc4) 28... Bxe5 {[%emt 0:00:43]} 29. Rxb1 {[%emt 0:00:34]} Rae8 {[%emt 0:00:21]} (29... Rf7 $1 $19 {Threatens to win with ...Raf8.} 30. Bd3 Qf6) 30. Kh1 $2 {[%emt 0:00:41][%mdl 8192]} (30. Ba6 $1 $15) 30... Rf2 {[%emt 0:00:58]} 31. Qe3 {[%emt 0:00:23] Inhibits Qg5.} Ref8 {[%emt 0:01:54]} (31... Qh4 $19 {aiming for ...Ref8.} 32. Ba6 Re7) 32. Ba6 {[%emt 0:00:30] [#]} (32. Rc1 $1 $15) 32... Qg7 {[%emt 0:02:19]} (32... Rf1+ $1 $17 33. Rxf1 Rxf1+ 34. Ng1 Rb1) 33. Rc1 {[%emt 0:00:32]} R2f7 {[%emt 0:01:24] Against c7} 34. Rd1 {[%emt 0:00:25]} (34. a5 $11 {keeps the balance.}) 34... Re7 {[%emt 0:02:31]} ({Black should play} 34... Rf1+ $17 35. Rxf1 Rxf1+ 36. Ng1 Ra1) 35. Nd4 {[%emt 0:00:05]} (35. Ng1 $11) 35... Bxd4 $15 {[%emt 0:00:08]} 36. Qxd4 {[%emt 0:00:05]} Re1+ {[%emt 0:00:48]} 37. Kh2 $1 $11 {[%emt 0:00:07][%mdl 64] Black must now prevent Qxg7+.} Rxd1 {[%emt 0:00:07]} (37... Qxd4 {simplifies} 38. Rxd4 Re7 39. Rc4 Rc7) 38. Qxd1 $15 {[%emt 0:00:01][%mdl 4096] Endgame KQR-KQB} Qe5+ {[%emt 0:00:35]} 39. Kh1 {[%emt 0:01:08] Strongly threatening Qc1.} Qc3 {[%emt 0:00:12] Prevents Qc1.} 40. Qe2 {[%emt 0:01:26] [#]} Rf7 $1 {[%emt 0:01:32]} ({But not} 40... Qxb4 41. Qe7 Qf4 42. c7 Qc1+ 43. Kh2 Qf4+ 44. Kh1 Qc1+ 45. Kh2 Qf4+ 46. Kh1 $11) 41. Qe6 {[%emt 0:09:00]} Qc1+ {[%emt 0:01:32]} 42. Kh2 {[%emt 0:00:24]} Qf4+ {[%emt 0:00:06]} 43. Kh1 {[%emt 0:03:26]} Kg7 {[%emt 0:01:42]} 44. a5 {[%emt 0:01:46]} Qf6 {[%emt 0:04:54]} ({Don't play} 44... Qxb4 $6 45. Qxf7+ Kxf7 46. c7 $11) 45. Qe3 {[%emt 0:09:48]} bxa5 {[%emt 0:04:44]} (45... Re7 $5 {[%cal Re7e3]} 46. Qc1 Rc7 $15) 46. bxa5 {[%emt 0:00:03]} Qa1+ {[%emt 0:03:09]} 47. Kh2 {[%emt 0:00:02]} h5 {[%emt 0:01:50]} 48. Qe4 {[%emt 0:07:01]} (48. Bc8 $11) 48... Qf6 {[%emt 0:01:56] ...Re7 is the strong threat.} 49. Qc4 {[%emt 0:02:50]} (49. Bc8 $17) 49... Qe5+ $19 {[%emt 0:02:48]} 50. Kh1 {[%emt 0:00:01]} Rc7 {[%emt 0:01:58]} 51. Kg1 {[%emt 0:01:29]} Kh7 {[%emt 0:00:34]} 52. Kh1 {[%emt 0:00:28]} Qa1+ {[%emt 0:00:36]} 53. Qf1 {[%emt 0:00:32]} Qxf1+ {[%emt 0:03:10]} 54. Bxf1 {[%emt 0:00:01]} Kg7 {[%emt 0:00:09] A wild game.   Weighted Error Value: White=0.41/Black=0.30} 0-1

[Event "Israeli Championship 2022"]
[Site "Yosiah Arad"]
[Date "2022.12.11"]
[Round "7.2"]
[White "Kochavi, Ori"]
[Black "Boruchovsky, Avital"]
[Result "1/2-1/2"]
[ECO "B58"]
[WhiteElo "2326"]
[BlackElo "2552"]
[Annotator "TA"]
[PlyCount "93"]
[EventDate "2022.12.05"]
[EventType "swiss"]
[EventCountry "ISR"]
[SourceTitle "playchess.com"]
[Source "ChessBase"]
[SourceQuality "1"]
[TimeControl "40/5400+30:1800+30"]

{[%evp 19,93,1,0,0,3,0,0,0,0,0,0,0,13,-19,-23,-22,-4,-11,-1,-6,-9,-49,-57,-80,-74,-79,-67,-70,-74,-81,-69,-77,-69,-68,-71,-76,0,-25,-21,-13,-13,-18,-18,-21,0,0,0,0,0,0,0,0,0,0,0,0,0,0,0,0,0,0,0,0,0,0,0,0,0,0,0,0,0,0,0,0]} 1. e4 {[%emt 0:00:31]} c5 {[%emt 0:00:06]} 2. Nf3 {[%emt 0:00:02]} d6 {[%emt 0:00:07]} 3. d4 {[%emt 0:00:01]} cxd4 {[%emt 0:00:07]} 4. Nxd4 {[%emt 0:00:01]} Nf6 {[%emt 0:00:08]} 5. Nc3 {[%emt 0:00:02]} Nc6 {[%emt 0:00:05]} 6. Be2 {[%emt 0:00:55]} e5 {[%emt 0:00:18]} 7. Nf3 {[%emt 0:00:03]} h6 {[%emt 0:00:06]} 8. O-O {[%emt 0:00:17]} Be7 {[%emt 0:00:05]} 9. Re1 {[%emt 0:01:31]} O-O {[%emt 0:00:07]} 10. Bf1 {[%emt 0:00:03]} Bg4 {[%emt 0:00:14][%cal Oc6d4,Bc8g4,Bg4h5,Bh5g6][%mdl 32]} 11. h3 {[%emt 0:06:09] B58: Classical Sicilian: 6 Be2.} Bh5 {[%emt 0:00:14]} 12. Be3 {[%emt 0:00:11]} Rc8 {[%emt 0:03:55]} 13. Be2 {[%emt 0:09:02] [#]} Bg6 $146 {[%emt 0:03:49]} ({Predecessor:} 13... a6 14. Nh2 Bg6 15. Bf3 b5 16. Ng4 Nxg4 17. Bxg4 Rb8 18. Bf5 Bg5 19. Nd5 Bxe3 20. Rxe3 {0-1 (34) Perez Gormaz,M (2413)-Sanal,V (2563) Chess.com INT 2021}) 14. Bd3 {[%emt 0:16:15]} a6 {[%emt 0:15:15]} 15. a3 {[%emt 0:11:27]} Na5 {[%emt 0:05:46]} 16. Nd2 {[%emt 0:13:26]} d5 {[%emt 0:06:50]} 17. exd5 {[%emt 0:00:12]} Bxd3 {[%emt 0:00:05]} 18. cxd3 {[%emt 0:00:04]} Nxd5 {[%emt 0:00:10]} 19. Nxd5 {[%emt 0:02:25]} Qxd5 {[%emt 0:00:51]} 20. Bb6 {[%emt 0:05:51]} (20. b4 $5 {[%cal Rb4a5]} Nc6 21. Nc4 $11) 20... Bd8 {[%emt 0:02:57][%cal Be7d8,Bd8a5,Ba5b6,Bb6d4][%mdl 32]} 21. Bxa5 {[%emt 0:01:00]} Bxa5 {[%emt 0:00:11]} ({Reject} 21... Qxa5 22. Nc4 Qc7 23. Nxe5 $11 (23. Rxe5 $2 {too greedy.} b5 $19)) 22. b4 {[%emt 0:00:01]} Bb6 {[%emt 0:08:37]} 23. Nc4 {[%emt 0:01:08]} Bd4 {[%emt 0:00:06]} 24. Rc1 {[%emt 0:00:22]} b5 {[%emt 0:06:26]} 25. Ne3 {[%emt 0:00:03]} Qa2 {[%emt 0:01:46]} (25... Qe6 {simplifies} 26. Qg4 Qxg4 27. hxg4 Bxe3 28. fxe3 Rfd8) 26. Rxc8 {[%emt 0:04:47]} Rxc8 {[%emt 0:00:16]} 27. Qg4 {[%emt 0:00:04]} Rc6 {[%emt 0:00:11]} (27... Rc7 $17) 28. Re2 {[%emt 0:08:53] Inhibits g6.} (28. Nf5 $5 {[%cal Rg4g7]} Qxf2+ 29. Kh2 $11) 28... Qa1+ {[%emt 0:07:04]} (28... Qe6 {keeps more tension.} 29. Nf5 Rc1+ 30. Kh2 Qf6) 29. Kh2 {[%emt 0:00:11] [#] Strongly threatening Nf5. The position is equal.} Bxe3 {[%emt 0:00:17]} (29... Qxa3 $2 30. Nf5 g5 31. Ne7+ (31. Nxd4 exd4 32. Qxd4 Rc8 $16) 31... Kg7 32. Nxc6 $18) 30. Rxe3 {[%emt 0:01:09][%cal Be2e3,Be3f3,Bf3f7,Bf7d7,Bd7a7,Ba7a6,Ba6e6,Be6e5][%mdl 32]} Qxa3 $11 {[%emt 0:00:20][%mdl 4096] Endgame KQR-KQR} 31. Rf3 $1 {[%emt 0:06:46] Prevents Rf6. Qd7 is the strong threat.} Qb3 {[%emt 0:16:37]} 32. Qd7 {[%emt 0:00:10] Prevents Qd5.} Qe6 {[%emt 0:00:30] Prevents Qe8+.} 33. Rxf7 {[%emt 0:00:04][%mdl 64] [#]} Qxd7 {[%emt 0:02:11]} 34. Rxd7 {[%emt 0:00:06] KR-KR} Rc2 {[%emt 0:00:02]} 35. Ra7 {[%emt 0:03:10]} Rxf2 {[%emt 0:03:46]} 36. Rxa6 {[%emt 0:00:05]} Rf4 {[%emt 0:00:06]} 37. Re6 {[%emt 0:00:05]} Rxb4 {[%emt 0:00:03]} 38. Rxe5 {[%emt 0:00:03]} Kf7 {[%emt 0:00:04]} 39. Kg3 {[%emt 0:01:54]} Kf6 {[%emt 0:02:25]} 40. d4 {[%emt 0:00:21]} Rb1 {[%emt 0:04:15]} 41. Kf4 {[%emt 0:11:56]} Rf1+ {[%emt 0:03:42]} 42. Kg4 {[%emt 0:00:34]} Rf2 {[%emt 0:00:06]} 43. g3 {[%emt 0:04:23]} Rb2 {[%emt 0:00:26]} 44. h4 {[%emt 0:03:09]} Rb1 {[%emt 0:04:06]} 45. Kh5 {[%emt 0:01:45]} Rd1 {[%emt 0:04:32]} 46. Rxb5 {[%emt 0:00:21]} Rxd4 {[%emt 0:00:02]} 47. g4 {[%emt 0:02:35] Weighted Error Value: White=0.05 (flawless) /Black=0.05 (flawless)} 1/2-1/2

[Event "Israeli Championship 2022"]
[Site "Yosiah Arad"]
[Date "2022.12.11"]
[Round "7.3"]
[White "Sokolovsky, Yahli"]
[Black "Parkhov, Yair"]
[Result "1-0"]
[ECO "B30"]
[WhiteElo "2414"]
[BlackElo "2470"]
[Annotator "TA"]
[PlyCount "62"]
[EventDate "2022.12.05"]
[EventType "swiss"]
[EventCountry "ISR"]
[SourceTitle "playchess.com"]
[Source "ChessBase"]
[SourceQuality "1"]
[TimeControl "40/5400+30:1800+30"]

{[%evp 10,62,9,22,41,5,23,18,23,29,27,32,27,27,74,67,51,50,147,134,140,156,160,165,273,265,299,270,414,418,402,304,315,325,625,611,648,404,424,427,413,408,400,404,473,453,471,460,459,459,452,454,452,445,429]} 1. e4 {[%emt 0:00:03]} c5 {[%emt 0:00:04]} 2. Nc3 {[%emt 0:00:20]} Nc6 {[%emt 0:08:36]} 3. Bb5 {[%emt 0:00:20]} Nd4 {[%emt 0:01:08]} 4. Nf3 {[%emt 0:00:15]} e6 {[%emt 0:00:21]} 5. O-O {[%emt 0:00:28]} a6 {[%emt 0:00:14]} 6. Bd3 {[%emt 0:00:07]} Nc6 {[%emt 0:00:18] The main line 6...Nc6 scores better than 6...Ne7. B30: Sicilian: 2...Nc6 3 Bb5, lines without ...g6.} 7. b3 {[%emt 0:00:39]} g5 {[%emt 0:07:05]} 8. Bb2 {[%emt 0:00:31][%cal Oc3d5]} Bg7 {[%emt 0:00:06] The position is equal.} 9. Na4 {[%emt 0:02:03][%cal Bc3a4,Ba4b2,Bb2c4][%mdl 32]} Bxb2 {[%emt 0:01:14]} 10. Nxb2 {[%emt 0:00:05] [#]} Kf8 $146 {[%emt 0:08:29]} ({Predecessor:} 10... h6 11. Nc4 d6 12. e5 d5 13. Nd6+ Kf8 14. Qe2 f5 15. c3 Nge7 16. Bc2 Ng6 {1-0 (35) Sethuraman,S (2644)-Sarkar,J (2338) Riga 2021}) 11. Nc4 {[%emt 0:11:12]} d5 {[%emt 0:00:46]} (11... d6 $11 {should be considered.}) 12. exd5 $16 {[%emt 0:06:02]} exd5 {[%emt 0:00:09]} 13. Nce5 {[%emt 0:00:44]} Qf6 {[%emt 0:00:53] White leaves nothing to chance now.} ({Black should play} 13... Nge7 $14) 14. Nxc6 {[%emt 0:03:35] White is more active.} bxc6 {[%emt 0:00:06]} 15. Qe1 $1 {[%emt 0:06:59]} Bg4 {[%emt 0:43:39] [#]} 16. Ne5 {[%emt 0:01:17][%cal Bf3e5,Be5c6,Bc6e7,Be7f5,Bf5d4][%mdl 32]} Nh6 {[%emt 0:04:03] [#]} (16... Re8 $142) 17. Qe3 $1 $18 {[%emt 0:02:40] Strongly threatening f4.} Re8 {[%emt 0:01:22]} 18. Rae1 {[%emt 0:08:52]} ({Resist} 18. Qxc5+ $6 Kg7 $18) 18... Bf5 {[%emt 0:06:52]} (18... Kg7 $142 19. h3 (19. Bxa6 Re6 $16) 19... Bf5) 19. Bxf5 {[%emt 0:08:33]} ({Less strong is} 19. Bxa6 Qd6 $18) (19. Qxc5+ Kg7 $18) 19... Qxf5 {[%emt 0:00:03]} 20. Qxc5+ {[%emt 0:01:19]} Kg7 {[%emt 0:00:04]} 21. Nxc6 {[%emt 0:00:35]} Ng4 $2 {[%emt 0:01:16]} (21... Rxe1 22. Rxe1 Rc8) 22. Ne7 {[%emt 0:06:20]} Qf4 {[%emt 0:00:06][%csl Gg4][%cal Rf4h2]} 23. Qc3+ {[%emt 0:00:48]} (23. Nxd5 $2 Qxh2#) 23... d4 {[%emt 0:01:16] [#]} 24. Qxd4+ $3 {[%emt 0:00:51][%mdl 512]} Qxd4 {[%emt 0:00:05]} 25. Nf5+ {[%emt 0:00:06]} Kf6 {[%emt 0:00:05]} 26. Nxd4 {[%emt 0:00:08]} Rd8 {[%emt 0:00:07]} 27. Re4 {[%emt 0:02:35] White is clearly winning.} Rhe8 {[%emt 0:00:14]} 28. Rfe1 {[%emt 0:00:37]} ({Not} 28. Rxg4 h5 29. Nc6 hxg4 $18) 28... Rxe4 {[%emt 0:00:07]} 29. Rxe4 {[%emt 0:00:30]} Ne5 {[%emt 0:00:30] [#]} 30. Rxe5 $1 {[%emt 0:00:30]} Rxd4 {[%emt 0:00:30]} 31. Re2 {[%emt 0:00:30]} Rd5 {[%emt 0:00:30] Weighted Error Value: White=0.19 (very precise) /Black=0.45} 1-0